bitfinex-derivatives/quotes_SOLF0:USTF0_20240908
["timestamp","ask_amount","ask_price","bid_price","bid_amount"]
[1725807054405,147.94142444,128.11,128.09,12.20893454]
[1725807055613,3.1227,128.1,128.05,4.4401]
[1725807055813,144.81882444,128.11,128.05,5.3007397]
[1725807056013,144.81882444,128.11,128.08,8.39]
[1725807056211,3.1229,128.1,128.08,8.39]
[1725807056512,168.23882444,128.11,128.06,8.39]
[1725807057415,3.1231,128.09,128.08,8.39]
[1725807059220,3.1231,128.09,128.05,5.3007397]
[1725807059221,3.1231,128.09,128.07,8.39]
[1725807060010,3.1232,128.08,128.05,5.3007397]
[1725807060212,168.23882444,128.11,128.07,8.39]
[1725807060613,3.1231,128.09,128.07,8.39]
[1725807063527,176.62882444,128.11,128.04,2.7858]
[1725807063715,23.42,128.09,128.04,1.3958]
[1725807064022,3.1238,128.06,128.04,1.3958]
[1725807064426,3.1238,128.06,128.04,5.37136734]
[1725807065220,3.1238,128.06,128.04,13.76136734]
[1725807067820,23.42,128.09,128.04,13.76136734]
[1725807067821,3.1239,128.05,128.04,13.76136734]
[1725807068322,3.1238,128.06,128.04,13.76136734]
[1725807068523,3.1238,128.06,128.05,8.39]
[1725807068923,144.81882444,128.11,128.05,8.39]
[1725807069120,144.81882444,128.11,128.09,8.39]
[1725807069620,3.1229,128.09,128.08,8.39]
[1725807069926,144.81882444,128.11,128.08,8.39]
[1725807070126,3.1228,128.1,128.08,8.39]
[1725807071930,3.1229,128.09,128.08,8.39]
[1725807075126,168.23882444,128.11,128.05,2.7286]
[1725807075330,168.23882444,128.11,128.06,8.39]
[1725807075827,3.1233,128.08,128.06,8.39]
[1725807076132,3.1233,128.08,128.05,2.7286]
[1725807076133,168.23882444,128.11,128.05,1.3577]
[1725807076531,168.23882444,128.11,128.06,8.39]
[1725807076926,3.1233,128.08,128.06,8.39]
[1725807085042,23.42,128.09,128.04,13.76136734]
[1725807085429,3.1238,128.06,128.04,13.76136734]
[1725807086644,3.1238,128.06,128.04,9.7858]
[1725807087035,3.1238,128.06,128.04,13.62111157]
[1725807087736,3.1238,128.06,128.04,9.7858]
[1725807088147,3.1238,128.06,128.04,13.77674033]
[1725807089646,3.1239,128.05,128.04,9.7858]
[1725807092947,3.1239,128.05,128.04,8.39]
[1725807099453,3.1239,128.05,128.03,12.25246485]
[1725807099657,23.42,128.07,127.99,4.513]
[1725807099857,23.42,128.07,128.02,8.39]
[1725807100753,23.42,128.07,128.03,8.39]
[1725807100950,12.20169946,128.08,128.03,8.39]
[1725807100951,23.42,128.06,128.03,8.39]
[1725807101951,27.23169946,128.08,128.03,8.39]
[1725807102349,3.1243,128.04,128.03,8.39]
[1725807107065,3.1243,128.04,128.03,12.29086711]
[1725807107361,3.124,128.05,128.03,12.29086711]
[1725807107668,144.81882444,128.11,128.06,3.1234]
[1725807107861,144.81882444,128.11,128.09,8.39]
[1725807108060,144.81882444,128.11,128.1,8.39]
[1725807108365,8.39,128.16,128.1,8.39]
[1725807108560,23.42,128.15,128.1,8.39]
[1725807110364,3.1223,128.12,128.1,8.39]
[1725807112369,3.1225,128.11,128.1,8.39]
[1725807118074,26.0345,128.2,128.1,8.39]
[1725807118274,26.0345,128.2,128.09,5.30227347]
[1725807118275,34.4245,128.2,128.13,8.39]
[1725807118573,26.0345,128.2,128.15,8.39]
[1725807119267,3.1214,128.16,128.15,8.39]
[1725807120463,3.1215,128.15,128.14,8.39]
[1725807121773,23.42,128.17,128.13,8.39]
[1725807121774,3.1218,128.14,128.13,8.39]
[1725807123370,23.42,128.17,128.13,8.39]
[1725807123571,23.42,128.17,128.15,8.39]
[1725807124478,26.0345,128.2,128.15,8.39]
[1725807125183,3.1212,128.17,128.15,8.39]
[1725807125574,26.0345,128.2,128.15,8.39]
[1725807126377,3.1212,128.16,128.15,8.39]
[1725807131485,3.1212,128.16,128.11,3.1223]
[1725807131672,3.1215,128.15,128.13,8.39]
[1725807132076,23.42,128.18,128.13,8.39]
[1725807133379,3.1217,128.15,128.13,8.39]
[1725807133875,3.1217,128.14,128.13,8.39]
[1725807136486,3.1215,128.15,128.13,8.39]
[1725807137485,3.1215,128.15,128.14,8.39]
[1725807139584,3.122,128.13,128.09,5.30227347]
[1725807139779,3.122,128.13,128.12,8.39]
[1725807141479,3.1225,128.11,128.09,6.58317347]
[1725807141684,3.1225,128.11,128.1,8.39]
[1725807142186,23.42,128.16,128.1,8.39]
[1725807142487,23.42,128.16,128.13,8.39]
[1725807142683,3.1217,128.14,128.13,8.39]
[1725807144179,3.1217,128.14,128.12,20.99]
[1725807145389,3.1219,128.13,128.12,20.99]
[1725807145594,23.42,128.18,128.1,20.99]
[1725807146195,3.1224,128.12,128.1,20.99]
[1725807146590,3.1224,128.11,128.09,27.57317347]
[1725807146892,3.1224,128.11,128.0,248.99]
[1725807146893,23.42,128.11,128.04,20.99]
[1725807147095,3.1235,128.07,128.04,20.99]
[1725807147594,3.1235,128.07,128.04,24.87828167]
[1725807147985,2.6334,128.15,128.05,20.99]
[1725807147986,3.1232,128.08,128.05,20.99]
[1725807148292,23.42,128.14,128.07,20.99]
[1725807148888,3.1231,128.09,128.07,20.99]
[1725807151688,3.1232,128.08,128.07,20.99]
[1725807155790,3.1234,128.07,128.06,20.99]
[1725807158490,3.1239,128.05,128.02,7.81161243]
[1725807158693,3.1239,128.05,128.02,28.80161243]
[1725807158895,44.41,128.12,128.02,28.80161243]
[1725807159097,3.1241,128.05,128.02,28.80161243]
[1725807159805,3.1242,128.04,128.02,28.80161243]
[1725807160000,3.1242,128.04,128.02,6.42731243]
[1725807163503,23.42,128.09,128.02,5.15711243]
[1725807163504,3.1244,128.03,128.02,5.15711243]
[1725807163810,23.42,128.07,128.01,20.99]
[1725807164004,23.42,128.07,128.01,24.87697961]
[1725807164204,3.1246,128.02,128.01,24.87697961]
[1725807164710,23.42,128.07,128.01,24.87697961]
[1725807164909,3.1246,128.02,128.01,24.87697961]
[1725807166207,3.1246,128.02,128.01,12.28697961]
[1725807167107,8.4,128.07,128.01,12.28697961]
[1725807167108,2.6956,128.09,128.01,12.28697961]
[1725807167302,2.6956,128.09,128.05,8.4]
[1725807167508,23.42,128.1,128.05,8.4]
[1725807167703,23.42,128.1,128.05,12.24930864]
[1725807167919,23.42,128.1,128.05,8.4]
[1725807167920,3.1236,128.06,128.05,8.4]
[1725807168121,3.1236,128.06,128.04,20.98]
[1725807168812,3.1239,128.05,128.04,24.82813686]
[1725807169213,2.7325,128.14,128.02,1.2809]
[1725807169214,23.42,128.09,128.02,22.2609]
[1725807169409,23.42,128.09,128.03,3.83563784]
[1725807170210,3.1241,128.04,128.03,3.83563784]
[1725807170406,3.1241,128.04,128.02,22.2609]
[1725807171110,3.1241,128.04,128.02,26.12544183]
[1725807173215,3.1241,128.04,128.02,22.2609]
[1725807173718,3.1241,128.04,128.02,1.2809]
[1725807175519,3.1244,128.03,128.02,1.2809]
[1725807177426,3.1244,128.03,128.01,3.84432119]
[1725807179024,3.1244,128.03,128.0,20.98]
[1725807181019,3.1247,128.02,128.0,20.98]
[1725807185032,3.1244,128.03,128.0,20.98]
[1725807185223,26.0928,128.09,128.02,20.98]
[1725807185421,26.0928,128.09,128.02,24.90087322]
[1725807185622,3.1243,128.04,128.02,24.90087322]
[1725807186128,26.0928,128.09,128.02,24.90087322]
[1725807186129,3.1244,128.03,128.02,3.92087322]
[1725807187722,3.1246,128.02,128.01,1.3284]
[1725807188223,3.1246,128.02,128.01,13.63833594]
[1725807189329,23.42,128.05,127.96,4.4276]
[1725807189525,23.42,128.05,127.99,8.4]
[1725807190628,3.125,128.01,127.99,8.4]
[1725807193632,3.1251,128.0,127.99,8.4]
[1725807197733,3.125,128.01,127.99,8.4]
[1725807197933,3.125,128.01,128.0,8.4]
[1725807200634,3.125,128.01,127.97,4.4321]
[1725807200635,23.42,128.03,127.99,8.4]
[1725807201242,3.1251,128.0,127.99,8.4]
[1725807203331,23.42,128.03,127.98,8.4]
[1725807203536,23.42,128.02,127.98,8.4]
[1725807206148,3.1254,127.99,127.98,8.4]
[1725807206341,8.4,128.0,127.83,242.49337602]
[1725807206544,23.42,127.99,127.94,8.4]
[1725807206744,3.1262,127.96,127.95,3.99007657]
[1725807207468,31.82,127.99,127.9,2.673]
[1725807207640,23.42,127.95,127.9,1.4005]
[1725807207840,8.4,127.94,127.89,12.29058225]
[1725807208046,3.1275,127.91,127.89,8.4]
[1725807208549,8.4,127.94,127.89,8.4]
[1725807208550,31.85,127.94,127.89,8.4]
[1725807208755,35.67805783,127.94,127.89,8.4]
[1725807209250,3.1275,127.9,127.89,8.4]
[1725807210545,3.1279,127.89,127.87,8.4]
[1725807211042,3.1279,127.89,127.84,1.2725]
[1725807211043,3.1279,127.89,127.84,2.6743]
[1725807211239,3.1279,127.89,127.86,8.4]
[1725807212248,3.1282,127.88,127.86,8.4]
[1725807212749,3.1278,127.89,127.87,8.4]
[1725807213544,3.1275,127.91,127.88,8.4]
[1725807213852,11.1056,127.95,127.88,8.4]
[1725807214051,3.1276,127.9,127.88,8.4]
[1725807214647,3.1278,127.89,127.88,8.4]
[1725807214946,3.1278,127.89,127.87,8.4]
[1725807215144,8.4,127.92,127.87,8.4]
[1725807217647,3.128,127.88,127.87,8.4]
[1725807218647,8.4,127.92,127.87,8.4]
[1725807218850,31.85,127.93,127.87,8.4]
[1725807219549,3.128,127.89,127.87,8.4]
[1725807220147,3.128,127.89,127.84,5.8033]
[1725807220449,31.85,127.93,127.86,8.4]
[1725807220450,3.1281,127.88,127.86,8.4]
[1725807221853,3.1283,127.87,127.85,8.4]
[1725807222051,8.4,127.9,127.85,8.4]
[1725807222355,3.1285,127.87,127.85,8.4]
[1725807223449,3.1285,127.86,127.84,11.0743]
[1725807223648,3.1285,127.86,127.84,9.8018]
[1725807224453,3.1284,127.87,127.84,9.8018]
[1725807225049,3.1285,127.86,127.84,9.8018]
[1725807227056,3.1285,127.86,127.84,1.4018]
[1725807227263,3.1288,127.85,127.83,8.4]
[1725807227760,8.4,127.88,127.83,8.4]
[1725807227960,23.45,127.93,127.83,8.4]
[1725807228156,8.4,127.9,127.84,8.4]
[1725807228357,3.1287,127.86,127.84,8.4]
[1725807230659,3.1288,127.85,127.83,8.4]
[1725807232066,3.129,127.84,127.83,8.4]
[1725807232860,3.1293,127.83,127.82,13.73994572]
[1725807233863,8.4,127.89,127.82,13.73994572]
[1725807234066,8.4,127.89,127.83,8.4]
[1725807234468,3.129,127.85,127.83,8.4]
[1725807235067,3.129,127.84,127.82,13.73994572]
[1725807240469,8.4,127.9,127.82,16.86934572]
[1725807240669,8.4,127.9,127.84,8.4]
[1725807241172,3.1287,127.86,127.84,8.4]
[1725807242373,3.129,127.85,127.83,8.4]
[1725807242969,8.4,127.89,127.83,8.4]
[1725807243673,3.129,127.85,127.83,8.4]
[1725807247475,3.129,127.85,127.82,6.70954572]
[1725807247668,3.129,127.84,127.82,15.10954572]
[1725807247871,3.129,127.84,127.82,5.33994572]
[1725807248572,3.1293,127.83,127.82,1.4073]
[1725807252578,3.1293,127.83,127.81,12.38616091]
[1725807255486,23.45,127.93,127.82,11.5293]
[1725807255780,8.4,127.89,127.83,8.4]
[1725807257278,3.1289,127.85,127.82,1.2753]
[1725807257479,3.1289,127.85,127.82,9.6753]
[1725807258677,1.0,127.92,127.84,8.4]
[1725807258985,1.0,127.92,127.86,8.4]
[1725807259180,3.1282,127.88,127.86,8.4]
[1725807259485,3.1282,127.88,127.83,2.5497]
[1725807259679,8.4,127.9,127.85,8.4]
[1725807259990,3.1284,127.87,127.83,10.9497]
[1725807260174,8.4,127.88,127.82,1.2753]
[1725807260375,3.129,127.85,127.82,1.2753]
[1725807260790,8.4,127.86,127.82,1.2753]
[1725807260974,3.1288,127.85,127.82,1.2753]
[1725807261878,3.1292,127.84,127.82,1.2753]
[1725807262178,8.4,127.86,127.81,3.98616091]
[1725807262982,3.1292,127.84,127.81,3.98616091]
[1725807263284,3.1292,127.84,127.81,12.38616091]
[1725807267983,8.4,127.86,127.81,3.98616091]
[1725807268693,3.1293,127.83,127.81,3.98616091]
[1725807268989,8.4,127.85,127.79,8.4]
[1725807269388,3.1297,127.82,127.79,8.4]
[1725807269589,8.4,127.85,127.79,8.4]
[1725807269990,3.1298,127.81,127.79,8.4]
[1725807271993,3.1298,127.81,127.78,3.1304]
[1725807272293,8.4,127.85,127.79,8.4]
[1725807273296,3.1297,127.82,127.79,8.4]
[1725807276495,3.13,127.81,127.79,8.4]
[1725807278099,23.45,127.85,127.8,8.4]
[1725807278595,31.85,127.85,127.8,8.4]
[1725807279199,3.1295,127.82,127.8,8.4]
[1725807279793,3.1295,127.82,127.79,8.4]
[1725807280604,3.1298,127.81,127.79,8.4]
[1725807288105,31.85,127.81,127.75,5.28707323]
[1725807288305,31.85,127.81,127.76,8.4]
[1725807288901,3.1304,127.79,127.76,8.4]
[1725807289309,31.85,127.81,127.75,5.28707323]
[1725807289603,3.1306,127.78,127.75,13.68707323]
[1725807290105,3.1303,127.79,127.76,3.131]
[1725807290402,3.1303,127.79,127.75,13.68707323]
[1725807290898,3.1305,127.78,127.75,16.81817323]
[1725807291301,31.85,127.81,127.75,5.28707323]
[1725807291513,23.45,127.79,127.75,13.68707323]
[1725807292009,3.1309,127.77,127.75,13.68707323]
[1725807292606,3.131,127.76,127.75,5.28707323]
[1725807293707,3.1309,127.77,127.75,5.28707323]
[1725807294408,23.45,127.79,127.75,13.68707323]
[1725807294913,3.131,127.76,127.75,13.68707323]
[1725807296719,3.1309,127.77,127.75,13.68707323]
[1725807297311,3.1307,127.78,127.76,8.4]
[1725807299424,23.45,127.81,127.75,16.81827323]
[1725807299622,23.45,127.81,127.75,13.68707323]
[1725807300325,3.1309,127.77,127.75,13.68707323]
[1725807302522,3.1309,127.77,127.75,5.28707323]
[1725807303920,3.1306,127.78,127.75,13.68707323]
[1725807306030,3.1307,127.77,127.75,13.68707323]
[1725807306830,3.1307,127.77,127.75,5.28707323]
[1725807307027,3.1307,127.77,127.75,1.3082]
[1725807307233,3.1307,127.77,127.75,5.29302236]
[1725807308530,3.1306,127.78,127.75,13.69302236]
[1725807309928,3.1303,127.79,127.76,8.4]
[1725807310139,3.1303,127.79,127.78,8.4]
[1725807310431,140.90015801,127.82,127.78,8.4]
[1725807310732,3.1298,127.81,127.78,8.4]
[1725807311133,3.1298,127.81,127.79,8.4]
[1725807313429,3.1298,127.81,127.77,3.1306]
[1725807313629,3.1301,127.8,127.77,8.4]
[1725807314836,3.1301,127.8,127.76,3.1309]
[1725807315030,3.1301,127.8,127.76,11.5309]
[1725807315734,3.1303,127.79,127.76,8.4]
[1725807316333,172.75015801,127.82,127.75,18.15292236]
[1725807317232,172.75015801,127.82,127.75,9.75292236]
[1725807317432,172.75015801,127.82,127.75,15.02182236]
[1725807317835,3.1306,127.78,127.75,15.02182236]
[1725807318435,23.45,127.78,127.65,7.808]
[1725807318635,23.45,127.78,127.72,8.4]
[1725807319042,3.1313,127.75,127.72,8.4]
[1725807321444,3.1312,127.76,127.72,11.5319]
[1725807322444,23.45,127.78,127.72,8.4]
[1725807322943,3.91523831,127.8,127.71,3.132]
[1725807322944,3.1317,127.73,127.71,8.4]
[1725807323142,8.4,127.76,127.71,8.4]
[1725807323439,8.4,127.77,127.72,8.4]
[1725807323634,3.1315,127.75,127.72,8.4]
[1725807324242,8.4,127.77,127.71,8.4]
[1725807324649,31.85,127.75,127.61,11.43932336]
[1725807324948,31.85,127.75,127.68,8.4]
[1725807325340,3.1326,127.7,127.68,3.88749706]
[1725807325641,3.1326,127.7,127.69,8.4]
[1725807326546,3.1326,127.7,127.69,12.3657872]
[1725807326746,3.1326,127.7,127.69,3.9657872]
[1725807326947,3.1326,127.7,127.68,8.4]
[1725807327148,3.1321,127.72,127.69,8.4]
[1725807327346,3.1321,127.72,127.64,7.88008754]
[1725807327548,8.4,127.74,127.64,3.9342]
[1725807327745,3.1324,127.71,127.69,8.4]
[1725807328042,3.1324,127.71,127.64,3.9342]
[1725807328253,3.1322,127.71,127.68,8.4]
[1725807328644,3.1326,127.7,127.68,8.4]
[1725807328843,8.4,127.73,127.66,8.4]
[1725807329249,8.4,127.72,127.66,8.4]
[1725807329554,3.1329,127.69,127.66,8.4]
[1725807330145,3.1325,127.7,127.67,8.4]
[1725807330449,8.4,127.73,127.67,8.4]
[1725807331851,3.1326,127.7,127.67,8.4]
[1725807332351,3.1326,127.7,127.69,8.4]
[1725807332549,1.3836,127.76,127.69,8.4]
[1725807332742,8.4,127.75,127.69,8.4]
[1725807333145,3.1322,127.72,127.7,8.4]
[1725807334244,3.1318,127.73,127.71,3.94071358]
[1725807335255,3.1315,127.74,127.7,11.5324]
[1725807335658,3.1315,127.74,127.71,8.4]
[1725807335953,3.1315,127.74,127.72,3.8964579]
[1725807336353,198.43286086,127.77,127.72,3.8964579]
[1725807336354,3.1317,127.73,127.72,3.8964579]
[1725807336946,198.43286086,127.77,127.72,3.8964579]
[1725807336947,3.1316,127.74,127.72,3.8964579]
[1725807339653,3.1317,127.73,127.72,3.8964579]
[1725807340254,3.1317,127.73,127.71,1.3778]
[1725807340255,8.4,127.75,127.71,1.3778]
[1725807340659,190.03286086,127.77,127.71,5.20677889]
[1725807340660,8.4,127.76,127.71,5.20677889]
[1725807340966,3.1316,127.74,127.72,8.4]
[1725807341156,3.1316,127.74,127.73,3.92647513]
[1725807341762,3.1313,127.75,127.73,3.92647513]
[1725807342256,198.43286086,127.77,127.73,3.92647513]
[1725807343557,190.03286086,127.77,127.72,8.4]
[1725807343760,3.1315,127.74,127.73,3.89123553]
[1725807343956,3.1315,127.74,127.71,1.3778]
[1725807344262,3.1315,127.74,127.71,9.7778]
[1725807344649,3.1315,127.74,127.72,3.99343038]
[1725807350666,3.1317,127.73,127.72,3.99343038]
[1725807350964,3.1317,127.73,127.69,8.4]
[1725807351166,3.1317,127.73,127.69,11.5325]
[1725807352972,3.1317,127.73,127.7,3.1324]
[1725807353175,3.1317,127.73,127.71,3.865487]
[1725807355267,3.1317,127.73,127.71,12.265487]
[1725807355572,23.45,127.76,127.72,8.4]
[1725807355759,23.45,127.76,127.73,12.35317882]
[1725807356161,3.1314,127.75,127.73,12.35317882]
[1725807358075,3.1312,127.75,127.73,12.35317882]
[1725807359873,3.1311,127.76,127.73,12.35317882]
[1725807360662,166.58286086,127.77,127.75,8.4]
[1725807360663,3.1308,127.77,127.75,8.4]
[1725807360870,23.45,127.81,127.76,8.4]
[1725807361473,3.1306,127.78,127.76,8.4]
[1725807363169,31.85,127.8,127.74,11.1033]
[1725807363365,23.45,127.78,127.74,1.3443]
[1725807363775,3.131,127.76,127.74,1.3443]
[1725807365083,23.45,127.78,127.73,12.35317882]
[1725807365084,3.1312,127.75,127.73,12.35317882]
[1725807366387,3.1308,127.77,127.74,8.4]
[1725807366579,23.45,127.8,127.75,8.4]
[1725807366891,3.131,127.76,127.74,8.4]
[1725807367177,23.45,127.78,127.73,8.4]
[1725807367383,3.1309,127.77,127.75,8.4]
[1725807368378,23.45,127.81,127.75,8.4]
[1725807368573,23.45,127.81,127.77,8.4]
[1725807369582,2.7434,127.84,127.79,8.4]
[1725807370381,3.13,127.8,127.79,8.4]
[1725807371783,23.45,127.79,127.73,4.01230222]
[1725807371988,23.45,127.79,127.74,8.4]
[1725807372289,3.1309,127.77,127.74,12.40524379]
[1725807372484,3.1309,127.77,127.75,8.4]
[1725807375195,3.131,127.76,127.75,8.4]
[1725807377195,2.7434,127.84,127.75,8.4]
[1725807377397,23.45,127.83,127.78,8.4]
[1725807377706,3.1304,127.79,127.78,8.4]
[1725807378302,23.45,127.83,127.73,3.9225]
[1725807378303,8.4,127.81,127.73,3.9225]
[1725807378496,23.45,127.8,127.76,8.4]
[1725807379307,23.45,127.8,127.76,12.35068857]
[1725807379501,23.45,127.8,127.76,8.4]
[1725807380008,23.45,127.8,127.75,3.93229142]
[1725807380198,23.45,127.8,127.76,8.4]
[1725807380500,23.45,127.8,127.75,12.30136857]
[1725807380701,23.45,127.79,127.73,3.9225]
[1725807380897,23.45,127.79,127.74,8.4]
[1725807381094,23.45,127.79,127.74,12.36947714]
[1725807381496,23.45,127.79,127.75,8.4]
[1725807381803,23.45,127.8,127.75,8.4]
[1725807382303,23.45,127.8,127.75,12.2813181]
[1725807382494,3.131,127.76,127.75,12.2813181]
[1725807383801,3.1308,127.77,127.75,12.2813181]
[1725807384395,3.1308,127.77,127.76,8.4]
[1725807388203,3.1306,127.78,127.76,8.4]
[1725807389202,23.45,127.82,127.76,8.4]
[1725807390208,3.1307,127.78,127.76,8.4]
[1725807390702,3.131,127.77,127.75,3.8813181]
[1725807391009,3.131,127.77,127.76,8.4]
[1725807395600,3.1306,127.78,127.76,8.4]
[1725807395803,23.45,127.82,127.77,8.4]
[1725807396507,3.1304,127.79,127.77,8.4]
[1725807397101,3.1304,127.79,127.78,3.90802348]
[1725807397305,3.1306,127.78,127.74,3.1313]
[1725807397606,3.1306,127.78,127.76,8.4]
[1725807398416,3.1306,127.78,127.77,3.9181996]
[1725807407206,3.1306,127.78,127.76,8.4]
[1725807407418,3.1306,127.78,127.76,12.32328767]
[1725807412113,23.45,127.83,127.76,12.32328767]
[1725807412621,23.45,127.83,127.73,3.9225]
[1725807412622,23.45,127.81,127.73,3.9225]
[1725807412821,23.45,127.81,127.75,8.4]
[1725807413011,8.4,127.79,127.73,6.52415772]
[1725807413214,23.45,127.76,127.66,1.4115]
[1725807413521,23.45,127.76,127.71,8.4]
[1725807413720,31.85,127.76,127.69,8.4]
[1725807414322,3.1324,127.71,127.69,8.4]
[1725807414814,3.1324,127.71,127.67,4.4566]
[1725807414815,31.85,127.76,127.67,1.3234]
[1725807415015,23.45,127.73,127.68,8.4]
[1725807415822,23.45,127.73,127.68,6.4]
[1725807416021,23.45,127.74,127.68,6.4]
[1725807416427,23.45,127.74,127.7,8.4]
[1725807417724,23.45,127.74,127.66,5.828]
[1725807417920,23.45,127.74,127.69,8.4]
[1725807418817,3.1326,127.7,127.69,8.4]
[1725807421622,3.1326,127.7,127.66,2.6946]
[1725807421623,3.1327,127.69,127.66,2.6946]
[1725807421936,3.1327,127.69,127.68,8.4]
[1725807423036,3.1325,127.7,127.68,8.4]
[1725807425433,23.45,127.74,127.68,8.4]
[1725807426230,3.1327,127.7,127.68,8.4]
[1725807426529,23.45,127.74,127.68,8.4]
[1725807426935,3.1327,127.7,127.68,8.4]
[1725807427138,13.76551267,127.75,127.68,8.4]
[1725807427139,1.3977,127.75,127.68,8.4]
[1725807427339,23.45,127.77,127.73,8.4]
[1725807427534,27.27819579,127.77,127.73,8.4]
[1725807427838,27.34162708,127.77,127.73,8.4]
[1725807429335,3.1315,127.74,127.73,8.4]
[1725807429924,3.1318,127.73,127.71,8.4]
[1725807430126,35.74162708,127.77,127.71,8.4]
[1725807430432,3.1319,127.73,127.71,8.4]
[1725807432530,3.132,127.72,127.71,8.4]
[1725807433127,3.1318,127.73,127.71,8.4]
[1725807437737,35.74162708,127.77,127.66,2.6946]
[1725807437738,31.85,127.75,127.66,2.6946]
[1725807437940,31.85,127.75,127.69,12.34479248]
[1725807438236,35.75133124,127.75,127.69,12.34479248]
[1725807438741,35.75133124,127.75,127.69,8.4]
[1725807438936,3.1324,127.7,127.69,8.4]
[1725807444353,1.361,127.74,127.66,1.2831]
[1725807444354,3.133,127.68,127.66,1.2831]
[1725807444543,3.133,127.68,127.66,13.58034118]
[1725807444746,23.45,127.71,127.66,13.58034118]
[1725807444747,23.45,127.71,127.66,5.18034118]
[1725807444948,3.1331,127.68,127.66,5.18034118]
[1725807445250,23.45,127.71,127.66,13.58034118]
[1725807445450,23.45,127.71,127.66,12.29724118]
[1725807445451,3.1332,127.67,127.66,12.29724118]
[1725807446545,3.1332,127.67,127.66,8.4]
[1725807446747,3.1332,127.67,127.65,8.4]
[1725807448248,31.85,127.71,127.62,5.8069]
[1725807448445,31.85,127.71,127.65,8.4]
[1725807449154,3.1333,127.67,127.65,8.4]
[1725807449944,31.85,127.71,127.65,8.4]
[1725807451053,23.45,127.7,127.65,8.4]
[1725807451859,23.45,127.7,127.62,5.807]
[1725807452048,23.45,127.69,127.65,8.4]
[1725807454353,23.45,127.67,127.62,2.6727]
[1725807454555,23.45,127.67,127.65,8.4]
[1725807455350,3.1334,127.66,127.65,8.4]
[1725807455551,3.87339392,127.68,127.62,2.6727]
[1725807455857,3.87339392,127.68,127.64,8.4]
[1725807456663,23.45,127.7,127.65,8.4]
[1725807457760,3.1334,127.66,127.65,8.4]
[1725807458361,3.1332,127.68,127.65,8.4]
[1725807458556,23.45,127.7,127.65,8.4]
[1725807459364,23.45,127.71,127.66,12.23969762]
[1725807459958,23.45,127.71,127.66,8.4]
[1725807460359,3.1334,127.67,127.66,12.30786489]
[1725807466575,3.133,127.68,127.66,12.30786489]
[1725807466768,23.45,127.73,127.66,12.30786489]
[1725807467069,23.45,127.73,127.68,8.4]
[1725807467374,3.1327,127.69,127.68,8.4]
[1725807470369,3.1329,127.68,127.67,3.86116116]
[1725807471675,3.1329,127.68,127.65,9.7345]
[1725807473070,23.45,127.71,127.65,1.3345]
[1725807473272,3.1332,127.67,127.66,3.86643164]
[1725807475275,3.1332,127.67,127.66,12.26643164]
[1725807483383,3.1332,127.67,127.66,13.66633164]